[Event "Early-Titled-Tuesday-Blitz-September-26-2023"]
[Site "Chess.com"]
[Date "2023.09.26"]
[Round "7"]
[White "Elprofessor21"]
[Black "Oleksandr_Bortnyk"]
[Result "0-1"]
[WhiteElo "2633"]
[BlackElo "3027"]
[TimeControl "180+1"]
[EndTime "9:17:48 PDT"]
[Termination "Oleksandr_Bortnyk won by checkmate"]

1. Nf3 {[%clk 0:03:00.9]} 1... Nf6 {[%clk 0:02:59.9]} 2. d4 {[%clk 0:03:00.9]}
2... b6 {[%clk 0:02:59.8]} 3. g3 {[%clk 0:03:01]} 3... Bb7 {[%clk 0:03:00.7]} 4.
Bg2 {[%clk 0:03:01.5]} 4... g6 {[%clk 0:03:01.6]} 5. O-O {[%clk 0:03:01.6]} 5...
Bg7 {[%clk 0:03:02.2]} 6. Nc3 {[%clk 0:03:00.6]} 6... O-O {[%clk 0:03:01.9]} 7.
Re1 {[%clk 0:03:01.1]} 7... d5 {[%clk 0:03:02.1]} 8. Ne5 {[%clk 0:03:00.3]} 8...
e6 {[%clk 0:03:00.2]} 9. Bg5 {[%clk 0:02:56]} 9... c5 {[%clk 0:02:59.6]} 10.
dxc5 {[%clk 0:02:32.3]} 10... bxc5 {[%clk 0:03:00.5]} 11. e4 {[%clk 0:02:32.4]}
11... d4 {[%clk 0:03:00.4]} 12. Na4 {[%clk 0:02:30.5]} 12... Qa5 {[%clk
0:02:57.4]} 13. b3 {[%clk 0:02:25.9]} 13... Nbd7 {[%clk 0:02:53.2]} 14. Nc4
{[%clk 0:02:09.2]} 14... Qc7 {[%clk 0:02:52.7]} 15. e5 {[%clk 0:02:07.1]} 15...
Nd5 {[%clk 0:02:50.6]} 16. Bf4 {[%clk 0:01:33.8]} 16... Nxf4 {[%clk 0:02:45.1]}
17. gxf4 {[%clk 0:01:34]} 17... Bxg2 {[%clk 0:02:45.9]} 18. Kxg2 {[%clk
0:01:34.6]} 18... f6 {[%clk 0:02:46.8]} 19. Qg4 {[%clk 0:01:20.3]} 19... Qc6+
{[%clk 0:02:46.9]} 20. Kg1 {[%clk 0:01:10.9]} 20... fxe5 {[%clk 0:02:47.4]} 21.
fxe5 {[%clk 0:01:06.5]} 21... Rf5 {[%clk 0:02:47.1]} 22. Nd6 {[%clk 0:00:56.1]}
22... Nxe5 {[%clk 0:02:46.6]} 23. Nxf5 {[%clk 0:00:55.3]} 23... Nf3+ {[%clk
0:02:24.6]} 24. Kf1 {[%clk 0:00:33.2]} 24... Nxh2+ {[%clk 0:02:24.4]} 25. Kg1
{[%clk 0:00:32.9]} 25... Nf3+ {[%clk 0:02:23]} 26. Kf1 {[%clk 0:00:32.2]} 26...
exf5 {[%clk 0:02:21]} 27. Qg2 {[%clk 0:00:30.6]} 27... Qa6+ {[%clk 0:01:58]} 28.
Re2 {[%clk 0:00:26.9]} 28... d3 {[%clk 0:01:33.8]} 29. Qxf3 {[%clk 0:00:15]}
29... dxe2+ {[%clk 0:01:33.6]} 30. Ke1 {[%clk 0:00:12.2]} 30... Re8 {[%clk
0:01:28.8]} 31. c3 {[%clk 0:00:10.4]} 31... Qd6 {[%clk 0:01:27.5]} 32. Rc1
{[%clk 0:00:07.7]} 32... Bh6 {[%clk 0:01:27.1]} 33. Rb1 {[%clk 0:00:04.4]} 33...
Bd2# {[%clk 0:01:25.8]} 0-1

[Event "Early-Titled-Tuesday-Blitz-September-26-2023"]
[Site "Chess.com"]
[Date "2023.09.26"]
[Round "7"]
[White "nicholas_ilic"]
[Black "Kostukov_Alex"]
[Result "0-1"]
[WhiteElo "2220"]
[BlackElo "2389"]
[TimeControl "180+1"]
[EndTime "9:17:54 PDT"]
[Termination "Kostukov_Alex won on time"]

1. e4 {[%clk 0:03:00.9]} 1... c5 {[%clk 0:02:41.6]} 2. Nf3 {[%clk 0:02:59.8]}
2... g6 {[%clk 0:02:40.7]} 3. d4 {[%clk 0:02:58.3]} 3... cxd4 {[%clk 0:02:40]}
4. Nxd4 {[%clk 0:02:59.2]} 4... Bg7 {[%clk 0:02:40.1]} 5. Nc3 {[%clk 0:02:56.3]}
5... Nc6 {[%clk 0:02:39.9]} 6. Be3 {[%clk 0:02:55.8]} 6... Nf6 {[%clk
0:02:39.5]} 7. Bc4 {[%clk 0:02:45.2]} 7... Qa5 {[%clk 0:02:38.1]} 8. O-O {[%clk
0:02:38.4]} 8... Qb4 {[%clk 0:02:37.3]} 9. Bb3 {[%clk 0:02:24]} 9... Nxe4 {[%clk
0:02:36.6]} 10. Nxc6 {[%clk 0:02:12.5]} 10... bxc6 {[%clk 0:02:35.7]} 11. Nxe4
{[%clk 0:01:51.7]} 11... Qxe4 {[%clk 0:02:35]} 12. c3 {[%clk 0:01:52.6]} 12...
O-O {[%clk 0:02:34.5]} 13. Re1 {[%clk 0:01:51.4]} 13... Qf5 {[%clk 0:02:34.4]}
14. Bd4 {[%clk 0:01:44.5]} 14... Bxd4 {[%clk 0:02:21.9]} 15. Qxd4 {[%clk
0:01:45.4]} 15... Qf6 {[%clk 0:02:21.8]} 16. Qxf6 {[%clk 0:01:36.1]} 16... exf6
{[%clk 0:02:21.7]} 17. Re7 {[%clk 0:01:36.7]} 17... a5 {[%clk 0:02:16.7]} 18.
Rae1 {[%clk 0:01:30]} 18... a4 {[%clk 0:02:13.2]} 19. Bc4 {[%clk 0:01:29.9]}
19... d5 {[%clk 0:02:12.1]} 20. Bd3 {[%clk 0:01:24.4]} 20... Be6 {[%clk
0:02:11.8]} 21. f4 {[%clk 0:01:16.3]} 21... Rfb8 {[%clk 0:02:06.6]} 22. f5
{[%clk 0:01:09.2]} 22... gxf5 {[%clk 0:02:03]} 23. Re2 {[%clk 0:01:05]} 23... c5
{[%clk 0:01:45.4]} 24. Rf2 {[%clk 0:00:27.1]} 24... a3 {[%clk 0:01:37.3]} 25.
bxa3 {[%clk 0:00:09.4]} 25... Rxa3 {[%clk 0:01:30.8]} 26. Bxf5 {[%clk
0:00:03.6]} 26... Bxf5 {[%clk 0:01:29.6]} 27. Rxf5 {[%clk 0:00:04.2]} 27... Rb1+
{[%clk 0:01:30]} 28. Kf2 {[%clk 0:00:04]} 28... Rb2+ {[%clk 0:01:26.7]} 29. Kg1
{[%clk 0:00:02.1]} 29... Raxa2 {[%clk 0:01:26.2]} 30. h3 {[%clk 0:00:01.4]}
30... Rxg2+ {[%clk 0:01:25.2]} 0-1

[Event "Early-Titled-Tuesday-Blitz-September-26-2023"]
[Site "Chess.com"]
[Date "2023.09.26"]
[Round "7"]
[White "Katuducha"]
[Black "campochess"]
[Result "1-0"]
[WhiteElo "2198"]
[BlackElo "2174"]
[TimeControl "180+1"]
[EndTime "9:17:55 PDT"]
[Termination "Katuducha won on time"]

1. e4 {[%clk 0:03:00.9]} 1... c5 {[%clk 0:02:59.9]} 2. Nf3 {[%clk 0:03:00.1]}
2... Nc6 {[%clk 0:02:59.9]} 3. Bb5 {[%clk 0:02:59]} 3... e5 {[%clk 0:02:58.7]}
4. O-O {[%clk 0:02:57.7]} 4... Nge7 {[%clk 0:02:58.5]} 5. Re1 {[%clk 0:02:57.2]}
5... a6 {[%clk 0:02:54.5]} 6. Bf1 {[%clk 0:02:55.7]} 6... d6 {[%clk 0:02:53.5]}
7. c3 {[%clk 0:02:53.8]} 7... Ng6 {[%clk 0:02:50.6]} 8. d4 {[%clk 0:02:52.6]}
8... Qc7 {[%clk 0:02:50.4]} 9. h3 {[%clk 0:02:51.8]} 9... Be7 {[%clk 0:02:50.2]}
10. d5 {[%clk 0:02:49.8]} 10... Nb8 {[%clk 0:02:49.2]} 11. c4 {[%clk 0:02:50.2]}
11... O-O {[%clk 0:02:48.8]} 12. a4 {[%clk 0:02:49.9]} 12... f5 {[%clk
0:02:48.7]} 13. exf5 {[%clk 0:02:49.5]} 13... Bxf5 {[%clk 0:02:47.4]} 14. Nc3
{[%clk 0:02:49.8]} 14... Nd7 {[%clk 0:02:35.7]} 15. Bg5 {[%clk 0:02:48.1]} 15...
Nf6 {[%clk 0:02:30.9]} 16. Nh4 {[%clk 0:02:45.3]} 16... Nxh4 {[%clk 0:02:28.2]}
17. Bxh4 {[%clk 0:02:45.9]} 17... Rae8 {[%clk 0:02:10.7]} 18. g4 {[%clk
0:02:43.5]} 18... Bc8 {[%clk 0:02:02.4]} 19. Bg2 {[%clk 0:02:41]} 19... Kh8
{[%clk 0:01:55.6]} 20. Bg3 {[%clk 0:02:38.5]} 20... Ng8 {[%clk 0:01:54.4]} 21.
Ne4 {[%clk 0:02:35.6]} 21... Bd7 {[%clk 0:01:41.5]} 22. Qd3 {[%clk 0:02:32]}
22... Nh6 {[%clk 0:01:37.8]} 23. Rf1 {[%clk 0:02:24.8]} 23... Nf7 {[%clk
0:01:35.1]} 24. Qe3 {[%clk 0:02:22.7]} 24... b5 {[%clk 0:01:29]} 25. axb5 {[%clk
0:02:21.6]} 25... axb5 {[%clk 0:01:28.7]} 26. b3 {[%clk 0:02:22]} 26... b4
{[%clk 0:01:26.6]} 27. Ra6 {[%clk 0:02:16.1]} 27... Ra8 {[%clk 0:01:24.4]} 28.
Rfa1 {[%clk 0:02:14.3]} 28... Rxa6 {[%clk 0:01:24.2]} 29. Rxa6 {[%clk
0:02:14.8]} 29... Bc8 {[%clk 0:01:15]} 30. Ra8 {[%clk 0:02:13.6]} 30... Bb7
{[%clk 0:01:12.7]} 31. Rxf8+ {[%clk 0:02:12.8]} 31... Bxf8 {[%clk 0:01:12.5]}
32. f4 {[%clk 0:02:13.4]} 32... Qe7 {[%clk 0:01:05.1]} 33. fxe5 {[%clk
0:02:09.1]} 33... Nxe5 {[%clk 0:01:03.5]} 34. Qf4 {[%clk 0:02:07.2]} 34... Bc8
{[%clk 0:00:46.1]} 35. Nxd6 {[%clk 0:01:59]} 35... Nd3 {[%clk 0:00:36.2]} 36.
Nxc8 {[%clk 0:01:58]} 36... Qd8 {[%clk 0:00:23.2]} 37. Qc7 {[%clk 0:01:56.2]}
37... Qf6 {[%clk 0:00:18.6]} 38. d6 {[%clk 0:01:54.5]} 38... Qa1+ {[%clk
0:00:17.9]} 39. Kh2 {[%clk 0:01:54.1]} 39... Qd4 {[%clk 0:00:13.8]} 40. d7
{[%clk 0:01:50.5]} 40... Nf2 {[%clk 0:00:01.6]} 41. d8=Q {[%clk 0:01:46.4]} 1-0

[Event "Early-Titled-Tuesday-Blitz-September-26-2023"]
[Site "Chess.com"]
[Date "2023.09.26"]
[Round "7"]
[White "Ariadna_Atreides"]
[Black "zozik"]
[Result "0-1"]
[WhiteElo "2191"]
[BlackElo "2324"]
[TimeControl "180+1"]
[EndTime "9:17:57 PDT"]
[Termination "zozik won on time"]

1. d4 {[%clk 0:03:00.9]} 1... d5 {[%clk 0:02:57.9]} 2. Nf3 {[%clk 0:03:00.7]}
2... c5 {[%clk 0:02:57.4]} 3. dxc5 {[%clk 0:02:59.3]} 3... Nc6 {[%clk
0:02:57.8]} 4. a3 {[%clk 0:02:57.6]} 4... a5 {[%clk 0:02:56.7]} 5. c4 {[%clk
0:02:55.4]} 5... e6 {[%clk 0:02:54.4]} 6. cxd5 {[%clk 0:02:53.7]} 6... exd5
{[%clk 0:02:55]} 7. Nc3 {[%clk 0:02:52.6]} 7... Be6 {[%clk 0:02:55.5]} 8. Nd4
{[%clk 0:02:49.6]} 8... Bxc5 {[%clk 0:02:52.5]} 9. Nxe6 {[%clk 0:02:48.4]} 9...
fxe6 {[%clk 0:02:53.4]} 10. e3 {[%clk 0:02:46.8]} 10... Nf6 {[%clk 0:02:52.6]}
11. Bd3 {[%clk 0:02:45.8]} 11... O-O {[%clk 0:02:52.3]} 12. O-O {[%clk
0:02:45.4]} 12... e5 {[%clk 0:02:51.5]} 13. e4 {[%clk 0:02:32.7]} 13... d4
{[%clk 0:02:46.3]} 14. Ne2 {[%clk 0:02:25.6]} 14... Ne7 {[%clk 0:02:38.5]} 15.
Rb1 {[%clk 0:02:22.3]} 15... Ng6 {[%clk 0:02:34.1]} 16. b4 {[%clk 0:02:17]}
16... axb4 {[%clk 0:02:35]} 17. axb4 {[%clk 0:02:16.3]} 17... Bd6 {[%clk
0:02:35.1]} 18. Qb3+ {[%clk 0:02:15.2]} 18... Kh8 {[%clk 0:02:34.9]} 19. Bg5
{[%clk 0:01:51.3]} 19... Qd7 {[%clk 0:02:32.2]} 20. Ng3 {[%clk 0:01:46.3]} 20...
Qg4 {[%clk 0:02:25.3]} 21. Bxf6 {[%clk 0:01:41]} 21... Rxf6 {[%clk 0:02:26.2]}
22. h3 {[%clk 0:01:34.6]} 22... Qg5 {[%clk 0:02:25.1]} 23. Ra1 {[%clk
0:01:29.3]} 23... Raf8 {[%clk 0:02:23.6]} 24. Nf5 {[%clk 0:01:27.8]} 24... Nf4
{[%clk 0:02:21]} 25. g3 {[%clk 0:01:12.6]} 25... Nxh3+ {[%clk 0:02:18]} 26. Kh2
{[%clk 0:00:57.5]} 26... Nf4 {[%clk 0:02:04.8]} 27. Rh1 {[%clk 0:00:34.2]} 27...
Nxd3 {[%clk 0:01:58.7]} 28. Qxd3 {[%clk 0:00:32.4]} 28... g6 {[%clk 0:01:59.3]}
29. Nxd6 {[%clk 0:00:22.7]} 29... Rxf2+ {[%clk 0:01:58.8]} 30. Kg1 {[%clk
0:00:21.8]} 30... R2f3 {[%clk 0:01:46.9]} 31. Qxf3 {[%clk 0:00:03.4]} 31... Rxf3
{[%clk 0:01:47.8]} 32. Ra8+ {[%clk 0:00:02.4]} 32... Kg7 {[%clk 0:01:47.1]} 33.
Ne8+ {[%clk 0:00:01.6]} 33... Kf8 {[%clk 0:01:30]} 34. Rh5 {[%clk 0:00:01.7]}
34... Qxg3+ {[%clk 0:01:28.7]} 0-1

[Event "Early-Titled-Tuesday-Blitz-September-26-2023"]
[Site "Chess.com"]
[Date "2023.09.26"]
[Round "7"]
[White "Wizard_97"]
[Black "Francisco_Ferrari"]
[Result "1-0"]
[WhiteElo "2545"]
[BlackElo "2396"]
[TimeControl "180+1"]
[EndTime "9:18:00 PDT"]
[Termination "Wizard_97 won by resignation"]

1. e4 {[%clk 0:03:00.9]} 1... c5 {[%clk 0:02:58]} 2. Nf3 {[%clk 0:03:00.2]} 2...
d6 {[%clk 0:02:57.1]} 3. d4 {[%clk 0:03:00.7]} 3... cxd4 {[%clk 0:02:58]} 4.
Nxd4 {[%clk 0:03:01.6]} 4... Nf6 {[%clk 0:02:58.4]} 5. Nc3 {[%clk 0:03:02.2]}
5... a6 {[%clk 0:02:59]} 6. Be3 {[%clk 0:03:02.1]} 6... e5 {[%clk 0:02:58.4]} 7.
Nb3 {[%clk 0:03:02.4]} 7... Be7 {[%clk 0:02:58.6]} 8. f3 {[%clk 0:03:01.7]} 8...
Be6 {[%clk 0:02:58.6]} 9. Qd2 {[%clk 0:03:02.2]} 9... h5 {[%clk 0:02:59.2]} 10.
Nd5 {[%clk 0:03:01.7]} 10... Bxd5 {[%clk 0:02:55.4]} 11. exd5 {[%clk 0:03:02.6]}
11... Nbd7 {[%clk 0:02:55.6]} 12. O-O-O {[%clk 0:03:01.3]} 12... Nb6 {[%clk
0:02:40.6]} 13. Qa5 {[%clk 0:02:59.8]} 13... Nfd7 {[%clk 0:02:20.3]} 14. f4
{[%clk 0:02:56.4]} 14... exf4 {[%clk 0:01:41.3]} 15. Bxf4 {[%clk 0:02:57.3]}
15... O-O {[%clk 0:01:39.8]} 16. Bd3 {[%clk 0:02:52.5]} 16... Bg5 {[%clk
0:01:34.9]} 17. Rhf1 {[%clk 0:02:48.2]} 17... Bxf4+ {[%clk 0:01:32.7]} 18. Rxf4
{[%clk 0:02:49.1]} 18... Qg5 {[%clk 0:01:30.4]} 19. g3 {[%clk 0:02:47.8]} 19...
Rac8 {[%clk 0:01:02.1]} 20. Kb1 {[%clk 0:02:28.6]} 20... g6 {[%clk 0:01:02.1]}
21. Be4 {[%clk 0:02:20.7]} 21... Nc4 {[%clk 0:00:57.6]} 22. Qb4 {[%clk
0:02:20.5]} 22... b5 {[%clk 0:00:48.2]} 23. Nd4 {[%clk 0:02:12.2]} 23... a5
{[%clk 0:00:29.8]} 24. Qxb5 {[%clk 0:02:01.2]} 24... Nxb2 {[%clk 0:00:29.7]} 25.
Qxb2 {[%clk 0:01:59.9]} 25... Rb8 {[%clk 0:00:28]} 26. Nb5 {[%clk 0:01:53.8]}
26... Rxb5 {[%clk 0:00:23]} 27. Qxb5 {[%clk 0:01:53.6]} 27... Rb8 {[%clk
0:00:23.7]} 28. Qxb8+ {[%clk 0:01:40.1]} 28... Nxb8 {[%clk 0:00:24.6]} 29. Rd3
{[%clk 0:01:36.5]} 29... Nd7 {[%clk 0:00:21.5]} 30. Ra3 {[%clk 0:01:36]} 30...
Qd8 {[%clk 0:00:15.5]} 31. Bd3 {[%clk 0:01:30.1]} 31... Nc5 {[%clk 0:00:15]} 32.
Bb5 {[%clk 0:01:28.7]} 32... Qb6 {[%clk 0:00:14.9]} 33. c4 {[%clk 0:01:27.2]}
33... Qd8 {[%clk 0:00:13]} 34. Re3 {[%clk 0:01:26]} 34... Qg5 {[%clk 0:00:10.5]}
35. h4 {[%clk 0:01:24.3]} 35... Qd8 {[%clk 0:00:10.3]} 36. Re8+ {[%clk
0:01:23.7]} 36... Qxe8 {[%clk 0:00:10.8]} 37. Bxe8 {[%clk 0:01:24.6]} 1-0

[Event "Early-Titled-Tuesday-Blitz-September-26-2023"]
[Site "Chess.com"]
[Date "2023.09.26"]
[Round "7"]
[White "Barmen_EV"]
[Black "AleksandrAleksikov"]
[Result "1-0"]
[WhiteElo "2446"]
[BlackElo "2224"]
[TimeControl "180+1"]
[EndTime "9:18:02 PDT"]
[Termination "Barmen_EV won on time"]

1. e4 {[%clk 0:03:00.9]} 1... c5 {[%clk 0:02:58.5]} 2. c3 {[%clk 0:03:00.9]}
2... Nf6 {[%clk 0:02:56.8]} 3. e5 {[%clk 0:03:01]} 3... Nd5 {[%clk 0:02:57]} 4.
Nf3 {[%clk 0:03:01.9]} 4... Nc6 {[%clk 0:02:55.8]} 5. d4 {[%clk 0:03:02.6]} 5...
cxd4 {[%clk 0:02:55.2]} 6. cxd4 {[%clk 0:03:02.9]} 6... d6 {[%clk 0:02:55.1]} 7.
Bc4 {[%clk 0:03:03.6]} 7... Nb6 {[%clk 0:02:54.2]} 8. Bxf7+ {[%clk 0:03:04.5]}
8... Kxf7 {[%clk 0:02:52.9]} 9. e6+ {[%clk 0:03:04.9]} 9... Kg8 {[%clk
0:02:19.5]} 10. d5 {[%clk 0:03:05.1]} 10... Ne5 {[%clk 0:02:13.2]} 11. Nxe5
{[%clk 0:03:05.6]} 11... dxe5 {[%clk 0:02:12.3]} 12. Nc3 {[%clk 0:03:06.5]}
12... g6 {[%clk 0:02:02.4]} 13. O-O {[%clk 0:03:04.9]} 13... Bg7 {[%clk
0:02:01.9]} 14. Qf3 {[%clk 0:03:01.2]} 14... Qf8 {[%clk 0:01:58.7]} 15. Qd3
{[%clk 0:02:54.7]} 15... Qf5 {[%clk 0:01:43.5]} 16. Qb5 {[%clk 0:02:54.5]} 16...
h6 {[%clk 0:01:19.8]} 17. a4 {[%clk 0:02:51.8]} 17... Bxe6 {[%clk 0:01:09.3]}
18. dxe6 {[%clk 0:02:50]} 18... Qxe6 {[%clk 0:01:09.1]} 19. a5 {[%clk
0:02:46.6]} 19... Nc4 {[%clk 0:01:08.4]} 20. Qxb7 {[%clk 0:02:38.9]} 20... Kh7
{[%clk 0:01:06.9]} 21. b3 {[%clk 0:02:38.5]} 21... Nd6 {[%clk 0:00:54.9]} 22.
Qd5 {[%clk 0:02:38.5]} 22... Qf5 {[%clk 0:00:38.8]} 23. Ba3 {[%clk 0:02:28.3]}
23... Rhd8 {[%clk 0:00:37.3]} 24. Bxd6 {[%clk 0:02:27.5]} 24... exd6 {[%clk
0:00:31]} 25. Ne4 {[%clk 0:02:26.3]} 25... Rab8 {[%clk 0:00:29.8]} 26. Rfd1
{[%clk 0:02:16.5]} 26... Bf8 {[%clk 0:00:25.6]} 27. Rd3 {[%clk 0:02:11]} 27...
Re8 {[%clk 0:00:14.5]} 28. Rf3 {[%clk 0:02:07.5]} 28... Qe6 {[%clk 0:00:14.5]}
29. Nf6+ {[%clk 0:01:43.5]} 29... Kh8 {[%clk 0:00:12]} 30. Nxe8 {[%clk
0:01:41.9]} 30... Qxd5 {[%clk 0:00:09.9]} 31. Rxf8+ {[%clk 0:01:42.6]} 31... Kh7
{[%clk 0:00:09.9]} 32. Nf6+ {[%clk 0:01:42.8]} 32... Kg7 {[%clk 0:00:10]} 33.
Nxd5 {[%clk 0:01:41.8]} 33... Kxf8 {[%clk 0:00:09.8]} 34. b4 {[%clk 0:01:40.5]}
34... Kf7 {[%clk 0:00:09.4]} 35. f3 {[%clk 0:01:39.2]} 35... Ke6 {[%clk
0:00:08.1]} 36. Rd1 {[%clk 0:01:39.8]} 36... Rb7 {[%clk 0:00:03.5]} 37. b5
{[%clk 0:01:39.8]} 37... Kd7 {[%clk 0:00:02.2]} 38. b6 {[%clk 0:01:39.6]} 38...
axb6 {[%clk 0:00:02.3]} 39. Nxb6+ {[%clk 0:01:33.6]} 1-0

[Event "Early-Titled-Tuesday-Blitz-September-26-2023"]
[Site "Chess.com"]
[Date "2023.09.26"]
[Round "7"]
[White "LeoLV10"]
[Black "CalinGheorghiu"]
[Result "0-1"]
[WhiteElo "2621"]
[BlackElo "2393"]
[TimeControl "180+1"]
[EndTime "9:18:04 PDT"]
[Termination "CalinGheorghiu won by resignation"]

1. e4 {[%clk 0:03:00.9]} 1... c5 {[%clk 0:02:59.7]} 2. Nf3 {[%clk 0:02:56.4]}
2... d6 {[%clk 0:03:00]} 3. d4 {[%clk 0:02:56.7]} 3... cxd4 {[%clk 0:03:00.9]}
4. Nxd4 {[%clk 0:02:57.6]} 4... Nf6 {[%clk 0:03:01.1]} 5. Nc3 {[%clk 0:02:57.9]}
5... a6 {[%clk 0:03:01.8]} 6. Bg5 {[%clk 0:02:57.9]} 6... e6 {[%clk 0:02:56]} 7.
f4 {[%clk 0:02:55.1]} 7... Be7 {[%clk 0:02:44.5]} 8. Qf3 {[%clk 0:02:54.3]} 8...
Nbd7 {[%clk 0:02:42.1]} 9. O-O-O {[%clk 0:02:53]} 9... Qc7 {[%clk 0:02:42.6]}
10. g4 {[%clk 0:02:50.1]} 10... b5 {[%clk 0:02:38.2]} 11. Bxf6 {[%clk
0:02:49.1]} 11... Bxf6 {[%clk 0:02:35.2]} 12. Bxb5 {[%clk 0:02:48.5]} 12... Bb7
{[%clk 0:02:22]} 13. g5 {[%clk 0:02:43.2]} 13... Bxd4 {[%clk 0:02:13.7]} 14.
Bxd7+ {[%clk 0:02:42.4]} 14... Qxd7 {[%clk 0:02:14.6]} 15. Rxd4 {[%clk
0:02:42.3]} 15... Rc8 {[%clk 0:02:11]} 16. Rhd1 {[%clk 0:02:41.1]} 16... Rc6
{[%clk 0:02:10.2]} 17. Qd3 {[%clk 0:02:40.6]} 17... Ke7 {[%clk 0:01:55.8]} 18.
e5 {[%clk 0:02:08.3]} 18... d5 {[%clk 0:01:55.5]} 19. Nxd5+ {[%clk 0:01:51.8]}
19... exd5 {[%clk 0:01:52.4]} 20. Rxd5 {[%clk 0:01:52.7]} 20... Rxc2+ {[%clk
0:01:36.8]} 21. Qxc2 {[%clk 0:01:44.9]} 21... Bxd5 {[%clk 0:01:32]} 22. Qc5+
{[%clk 0:01:40.8]} 22... Ke6 {[%clk 0:01:31.7]} 23. f5+ {[%clk 0:01:40.3]} 23...
Kxe5 {[%clk 0:00:52.8]} 24. Re1+ {[%clk 0:01:39.8]} 24... Kxf5 {[%clk
0:00:52.7]} 25. Qf2+ {[%clk 0:01:39.4]} 25... Kg6 {[%clk 0:00:50.1]} 26. Re2
{[%clk 0:01:22.1]} 26... Rc8+ {[%clk 0:00:46.6]} 27. Rc2 {[%clk 0:01:06.3]}
27... Rxc2+ {[%clk 0:00:44.4]} 28. Qxc2+ {[%clk 0:01:07.2]} 28... Qf5 {[%clk
0:00:41]} 29. Qe2 {[%clk 0:00:45.7]} 29... Qxg5+ {[%clk 0:00:36.7]} 30. Kc2
{[%clk 0:00:45.3]} 30... Qg2 {[%clk 0:00:30.4]} 0-1

[Event "Early-Titled-Tuesday-Blitz-September-26-2023"]
[Site "Chess.com"]
[Date "2023.09.26"]
[Round "7"]
[White "Hrant_ChessMood"]
[Black "djano"]
[Result "1-0"]
[WhiteElo "2917"]
[BlackElo "2664"]
[TimeControl "180+1"]
[EndTime "9:18:05 PDT"]
[Termination "Hrant_ChessMood won by checkmate"]

1. d4 {[%clk 0:02:56.4]} 1... Nf6 {[%clk 0:02:58]} 2. c4 {[%clk 0:02:56.4]} 2...
g6 {[%clk 0:02:58.4]} 3. Nc3 {[%clk 0:02:55.2]} 3... d5 {[%clk 0:02:58.6]} 4.
cxd5 {[%clk 0:02:55.2]} 4... Nxd5 {[%clk 0:02:59.5]} 5. e4 {[%clk 0:02:55.3]}
5... Nxc3 {[%clk 0:02:59.8]} 6. bxc3 {[%clk 0:02:56.2]} 6... Bg7 {[%clk
0:02:59.4]} 7. Nf3 {[%clk 0:02:56.1]} 7... c5 {[%clk 0:02:59.5]} 8. Bb5+ {[%clk
0:02:56]} 8... Nc6 {[%clk 0:02:56.1]} 9. O-O {[%clk 0:02:55.6]} 9... cxd4 {[%clk
0:02:54.4]} 10. cxd4 {[%clk 0:02:54.3]} 10... O-O {[%clk 0:02:54.4]} 11. Bxc6
{[%clk 0:02:53.7]} 11... bxc6 {[%clk 0:02:54.7]} 12. Qc2 {[%clk 0:02:36.4]}
12... Bg4 {[%clk 0:02:51]} 13. Ne5 {[%clk 0:02:35.8]} 13... Bxe5 {[%clk
0:02:24.4]} 14. dxe5 {[%clk 0:02:31.6]} 14... Be6 {[%clk 0:02:19.9]} 15. Ba3
{[%clk 0:02:26.9]} 15... Re8 {[%clk 0:02:15.2]} 16. Qxc6 {[%clk 0:02:20.1]}
16... Qa5 {[%clk 0:02:10]} 17. Qc5 {[%clk 0:02:16.2]} 17... Qa4 {[%clk
0:02:06.2]} 18. Qe3 {[%clk 0:02:02.8]} 18... Rac8 {[%clk 0:01:59.6]} 19. h3
{[%clk 0:02:00.2]} 19... Rc4 {[%clk 0:01:57.8]} 20. Rfe1 {[%clk 0:01:59.6]}
20... Rec8 {[%clk 0:01:55.9]} 21. Bxe7 {[%clk 0:01:58.7]} 21... Rc3 {[%clk
0:01:23.6]} 22. Qh6 {[%clk 0:01:54.4]} 22... Qe8 {[%clk 0:01:23.7]} 23. Bf6
{[%clk 0:01:43.9]} 23... Qf8 {[%clk 0:01:23.9]} 24. Qh4 {[%clk 0:01:38.7]} 24...
Rc2 {[%clk 0:01:20]} 25. Red1 {[%clk 0:01:37]} 25... h6 {[%clk 0:01:10]} 26. Rd6
{[%clk 0:01:36.8]} 26... Kh7 {[%clk 0:00:54.5]} 27. Rad1 {[%clk 0:01:33.7]}
27... Rc1 {[%clk 0:00:50.2]} 28. Rxc1 {[%clk 0:01:32.1]} 28... Rxc1+ {[%clk
0:00:51.1]} 29. Kh2 {[%clk 0:01:32.4]} 29... Rc8 {[%clk 0:00:45.3]} 30. f4
{[%clk 0:01:32.1]} 30... Qe8 {[%clk 0:00:34.6]} 31. Bg5 {[%clk 0:01:29.1]} 31...
h5 {[%clk 0:00:32.6]} 32. f5 {[%clk 0:01:25.4]} 32... Bxa2 {[%clk 0:00:21.7]}
33. e6 {[%clk 0:01:25.4]} 33... fxe6 {[%clk 0:00:19]} 34. fxg6+ {[%clk
0:01:23.5]} 34... Kxg6 {[%clk 0:00:18.2]} 35. Bf6 {[%clk 0:01:19.6]} 35... Kh7
{[%clk 0:00:10.8]} 36. Rd7+ {[%clk 0:01:19.8]} 36... Qxd7 {[%clk 0:00:07.3]} 37.
Qxh5+ {[%clk 0:01:19.8]} 37... Kg8 {[%clk 0:00:07.2]} 38. Qh8+ {[%clk
0:01:20.7]} 38... Kf7 {[%clk 0:00:07.7]} 39. Qg7+ {[%clk 0:01:21.6]} 39... Ke8
{[%clk 0:00:07.1]} 40. Qg8# {[%clk 0:01:22.5]} 1-0